Cogmind - Beta 16.1 @@@ ROGUE MODE // 2026.02.13 @ 23:10:07 Player: mewcatx Result: Destroyed by Autobeam Turret with Autobeam Performance ------------- Evolutions (0) 0 Regions Visited (2) 400 Robots Destroyed (9) 45 Value Destroyed (258) 258 Prototype IDs (0) 0 Alien Tech Used (0) 0 Bonus (0) 0 TOTAL SCORE: 703 Bonus ------- None Cogmind --------- Core Integrity 0/250 Matter 295/300 Energy 200/200 System Corruption 0% Temperature Cool (12) Movement Treading (160) Location -10/Subcaves Parts ------- > --- POWER (1) -------- Subdweller Power Source > --- PROPULSION (2) --- Light Treads Light Treads > --- UTILITY (2) ------ Medium Storage Unit Makeshift Thermal Plating > --- WEAPON (2) ------- Subdweller Laser Battle Cannon > --- INVENTORY (10) --- Light Ion Engine High-capacity Matter Pod (200) Structural Scanner Subdweller Optics Seismic Detector Weapon Shielding Weapon Shielding Assault Rifle Battle Rifle Light Cannon Peak State ------------ > --- POWER ------------ Subdweller Power Source > --- PROPULSION ------- Light Treads Light Treads > --- UTILITY ---------- Medium Storage Unit Makeshift Thermal Plating > --- WEAPON ----------- Subdweller Laser Battle Cannon > --- INVENTORY -------- Light Ion Engine High-capacity Matter Pod Structural Scanner Subdweller Optics Seismic Detector Weapon Shielding Weapon Shielding Assault Rifle Battle Rifle Light Cannon [Rating: 14] Favorites ----------- Power Ion Engine Engine Ion Engine Propulsion Light Treads Treads Light Treads Utility Medium Storage Unit Device Seismic Detector Storage Medium Storage Unit Protection Makeshift Thermal Plating Weapon Medium Laser Energy Gun Medium Laser Ballistic Gun Assault Rifle Ballistic Cannon Light Cannon Build | -11 -10 -10 ------- Run | Yrd Mat Sub Slots Evolved . | . . . Power . | . . . Propulsion . | . . . Utility . | . . . Weapon . | . . . Parts Attached 15 | 8 2 5 Power 3 | 2 . 1 Engine 3 | 2 . 1 Core . | . . . Reactor . | . . . Propulsion 2 | 2 . . Treads 2 | 2 . . Leg . | . . . Wheel . | . . . Hover . | . . . Flight . | . . . Utility 5 | 2 1 2 Device 1 | 1 . . Storage 2 | 1 1 . Processor . | . . . Hackware . | . . . Protection 2 | . . 2 Artifact . | . . . Weapon 5 | 2 1 2 Energy Gun 2 | 1 . 1 Energy Cannon . | . . . Ballistic Gun 1 | 1 . . Ballistic Cannon 2 | . 1 1 Launcher . | . . . Special Weapon . | . . . Impact Weapon . | . . . Slashing Weapon . | . . . Piercing Weapon . | . . . Special Melee Weapon . | . . . Unidentified Prototypes . | . . . Parts Lost . | . . . Power . | . . . Propulsion . | . . . Utility . | . . . Weapon . | . . . Highest Loss Streak . | . . . To Critical Strikes . | . . . Average Backups 8 | 2 7 9 Power . | . 1 1 Propulsion . | . . . Utility 4 | . 4 6 Weapon 2 | . 1 2 Tool/Special . | . . . Unused Backups 11 | . 4 7 Power . | . . . Propulsion 1 | . 1 . Utility 6 | . 1 5 Weapon 4 | . 2 2 Tool/Special . | . . . Average Slot Usage (%) 100 | . 100 100 Engine 14 | . 14 14 Treads 28 | . 28 28 Device 7 | . 14 . Storage 14 | . 14 14 Protection 6 | . . 13 Energy Gun 14 | . 14 14 Ballistic Gun 5 | . 11 . Ballistic Cannon 8 | . 2 14 Peak Build Rating 14 | 7 7 14 Average Rating 9 | 4 7 11 On Entrance 4 | . 7 7 Avg Prop Armor Cover (%) . | . . . Naked Turns . | . . . Heaviest Build 26 | 15 21 26 Greatest Support 40 | 40 40 40 Greatest Overweight (x) . | . . . Average Overweight (x) . | . . . Largest Inventory Capacity 10 | 8 10 10 Average Capacity 8 | 6 8 10 Most Carried 10 | 3 8 10 Average Carried 8 | 2 7 9 Final Capacity 10 | 8 10 10 Final Carried 10 | 3 8 10 Class Distribution -------------------- 100% | Mutant Dominant Class ---------------- Mutant | -10/Materials Mutant | -10/Subcaves Resources | -11 -10 -10 ----------- Run | Yrd Mat Sub Matter Collected 725 | 291 272 162 Remotely . | . . . Salvage Created 240 | 42 90 108 Parts 16 | 5 5 6 Haulers Intercepted . | . . . Recyclers Shooed 1 | . 1 . Parts Field Recycled . | . . . Retrieved Matter . | . . . Parts Self-Destructed . | . . . Prevented . | . . . Parts Restored . | . . . Kills | -11 -10 -10 ------- Run | Yrd Mat Sub Combat Hostiles Destroyed 6 | . 2 4 Guns 4 | . 2 2 Cannons 2 | . . 2 Classes Destroyed 4 | 1 2 1 Tunneler 2 | 2 . . Watcher 1 | . 1 . Grunt 2 | . 2 . Subdweller 4 | . . 4 Best Kill Streak 3 | 1 3 2 Combat Bots Only 2 | . 2 2 Max Kills in Single Turn 1 | 1 1 1 Gunslinging . | . . . Exploded . | . . . Melee . | . . . Uniques/NPCs Destroyed . | . . . Combat | -11 -10 -10 -------- Run | Yrd Mat Sub Hostile Shots Fired 65 | . 14 51 Missed 22 | . 4 18 Hits 43 | . 10 33 Projectile 43 | . 10 33 Critical Strikes 1 | . . 1 Damage Taken 740 | . 110 630 Core 251 | . 20 231 Absorbed by Shields . | . . . Redirected to Shielding 25 | . . 25 Ignored by Resistances 2 | . . 2 Core Remaining (%) 100 | 100 . . Volleys Fired 57 | 5 15 37 Largest 2 | 2 2 2 Hottest 93 | 70 70 93 Shots Fired 100 | 10 27 63 Gun 71 | 10 24 37 Cannon 29 | . 3 26 Launcher . | . . . Special . | . . . Kinetic 46 | 5 15 26 Thermal 54 | 5 12 37 Explosive . | . . . Electromagnetic . | . . . Robot Hit Streak 12 | 2 5 12 Robot Miss Streak 2 | 1 2 2 Penetration Max . | . . . Secondary Targets . | . . . Shots Hit Robots 60 | 5 13 42 Core Hits 16 | 3 6 7 Critical Kills . | . . . Critical Parts Destroyed . | . . . Critical Strikes 2 | 1 . 1 Burn 2 | 1 . 1 Melee Attacks . | . . . Impact . | . . . Slashing . | . . . Piercing . | . . . Sneak Attacks . | . . . Combat Hostiles . | . . . Follow-up Attacks . | . . . Damage Inflicted 842 | 63 183 596 Guns 538 | 63 183 292 Cannons 304 | . . 304 Explosions . | . . . Melee . | . . . Ramming . | . . . Kinetic 423 | 38 81 304 Thermal 419 | 25 102 292 Explosive . | . . . Electromagnetic . | . . . Impact . | . . . Slashing . | . . . Piercing . | . . . Highest Corruption . | . . . Average Corruption . | . . . Corruption Purged . | . . . Corruption Blocked . | . . . Overload Shots . | . . . Overflow Damage . | . . . Projectiles . | . . . Explosions . | . . . Melee . | . . . Knockbacks 4 | . . 4 Impact . | . . . Kinetic 3 | . . 3 Secondary 1 | . . 1 Self-Inflicted Damage . | . . . Shots . | . . . Rammed . | . . . Targets Rammed . | . . . Kicked . | . . . Crushed . | . . . Highest Temperature 103 | 27 103 . Average Temperature 38 | 11 48 . Received Heat Transfer 162 | . 60 102 Siege Activations . | . . . Martial Activations . | . . . Shielding Activations . | . . . Robots Disrupted . | . . . Combat Hostiles . | . . . Robots Corrupted . | . . . Combat Hostiles . | . . . Parts Fried . | . . . Impact Corruptions . | . . . Robots Melted . | . . . Combat Hostiles . | . . . Parts Melted 1 | . 1 . Heat Transferred 1039 | 148 296 595 Parts Sabotaged . | . . . Parts Stolen . | . . . Parts Stripped . | . . . Power Chain Reactions . | . . . Alert | -11 -10 -10 ------- Run | Yrd Mat Sub Maximum Alert Level . | . . . Low Security (%) 100 | 100 100 . Level 1 . | . . . Level 2 . | . . . Level 3 . | . . . Level 4 . | . . . Level 5 . | . . . High Security . | . . . Max Security . | . . . Peak Influence 30 | 5 30 . Initial . | . . . Average 2 | . 2 . Influence Increases 86 | 10 76 . Destroy 0b10 Robot/C 40 | . 40 . Destroy 0b10 Robot/NC 15 | 10 5 . Destroy Leader 2 | . 2 . Successful Hack 14 | . 14 . Lose Combat Pursuer 15 | . 15 . Influence Decreases 86 | 10 76 . Time Decay 86 | 10 76 . Squads Dispatched 1 | . 1 . Investigation 1 | . 1 . Extermination . | . . . Reinforcement . | . . . Assault . | . . . Garrison . | . . . Intercept . | . . . Searches Triggered . | . . . Construction Impeded . | . . . Haulers Reinforced . | . . . Active Scanning Responses . | . . . Cargo Convoy Interrupts . | . . . Stealth | -11 -10 -10 --------- Run | Yrd Mat Sub Distress Signals 2 | . 2 . Communications Jammed . | . . . Distress Signals . | . . . Times Spotted 11 | . 3 8 Peak Tracking Total 3 | . 3 2 Tactical Retreats 1 | . 1 . Traps | -11 -10 -10 ------- Run | Yrd Mat Sub Traps Triggered 1 | . 1 . Indirectly . | . . . Trap Hack Attempts . | . . . Triggered . | . . . Disarmed . | . . . Reprogrammed . | . . . Reused . | . . . Traps Extracted . | . . . Installed . | . . . Triggered . | . . . Machines | -11 -10 -10 ---------- Run | Yrd Mat Sub Machines Disabled . | . . . Max in Single Turn . | . . . Machines Repaired . | . . . Machines Dismantled . | . . . Machines Sabotaged . | . . . Overloaded Fab Kills . | . . . Hacking | -11 -10 -10 --------- Run | Yrd Mat Sub Machines Accessed 5 | . 5 . Terminals 4 | . 4 . Fabricators . | . . . Repair Stations . | . . . Recycling Units 1 | . 1 . Scanalyzers . | . . . Garrison Access . | . . . Total Hacks 11 | . 11 . Successful 4 | . 4 . Failed 6 | . 6 . Catastrophic . | . . . Database Lockouts 1 | . 1 . Manual 11 | . 11 . Terminals 10 | . 10 . Fabricators . | . . . Repair Stations . | . . . Recycling Units 1 | . 1 . Scanalyzers . | . . . Garrison Access . | . . . Terminal Hacks 2 | . 2 . Robot Analysis 1 | . 1 . Locate Traps 1 | . 1 . Fabricator Hacks . | . . . Repair Station Hacks . | . . . Recycling Unit Hacks . | . . . Scanalyzer . | . . . Garrison Access Hacks . | . . . Unauthorized Hacks 2 | . 2 . Terminals 1 | . 1 . Botnet 1 | . 1 . Fabricators . | . . . Repair Stations . | . . . Recycling Units 1 | . 1 . Reject 1 | . 1 . Scanalyzers . | . . . Garrison Access . | . . . Data Cores Recovered . | . . . Used . | . . . Hacking Detections 4 | . 4 . Full Trace Events 1 | . 1 . Feedback Events . | . . . Feedback Blocked . | . . . Robot Schematics Acquired . | . . . Robots Built . | . . . Authchips . | . . . Time . | . . . Total Robot Build Rating . | . . . Part Schematics Acquired . | . . . Parts Built . | . . . Authchips . | . . . Time . | . . . Total Part Build Rating . | . . . Part Studies Acquired . | . . . Parts Repaired . | . . . Time . | . . . Parts Recycled . | . . . Recycled Matter . | . . . Retrieved Matter . | . . . Retrieved Components . | . . . Parts Scanalyzed . | . . . Part Schematics Acquired . | . . . Parts Damaged . | . . . Bothacking | -11 -10 -10 ------------ Run | Yrd Mat Sub Used RIF Installer . | . . . Robots Hacked . | . . . Non-combat . | . . . Combat . | . . . Robot Hacks Applied . | . . . Relay Couplers Released . | . . . Fabnet Peak Effective % . | . . . Robots Rewired . | . . . Allies Hacked . | . . . Hacks Repelled . | . . . Allies | -11 -10 -10 -------- Run | Yrd Mat Sub Total Allies . | . . . Largest Group . | . . . Highest-Rated Group . | . . . Highest-Rated Ally . | . . . Total Orders . | . . . Ally Attacks . | . . . Total Damage . | . . . Kills . | . . . Allies Corrupted . | . . . Allies Melted . | . . . Intel | -11 -10 -10 ------- Run | Yrd Mat Sub Active Infowar (turns) 1065 | 19 1036 10 Seismic 1065 | 19 1036 10 Robot Analysis Total 1 | . 1 . Derelict Logs Recovered . | . . . Drone Launches . | . . . Drone Recoveries . | . . . Exploration | -11 -10 -10 ------------- Run | Yrd Mat Sub Turns Passed 2159 | 142 1036 981 Spaces Moved 1229 | 77 612 540 Core 8 | 8 . . Treads 1221 | 69 612 540 Legs . | . . . Wheels . | . . . Hover . | . . . Flight . | . . . Fastest Speed 50 | 50 160 160 Average Speed 159 | 148 160 160 Slowest Speed 160 | 160 160 160 Overloaded Moves . | . . . Propulsion Burnouts . | . . . Robots Hopped . | . . . Potential Cave-ins . | . . . Cave-ins Triggered . | . . . Exploration Rate (%) 42 | 5 85 37 Regions Visited 2 Branch Regions 1 Pre-discovered Areas 1 | . . 1 Known Exits Taken . | . . . Unknown Exits Taken 2 | 1 1 . Scrap Searched 3 | . . 3 Spaces Dug . | . . . Terrain Destroyed . | . . . Melee . | . . . Projectile . | . . . AOE . | . . . Terrain Rammed . | . . . Walls Destroyed . | . . . Machines Disabled . | . . . Actions | -11 -10 -10 --------- Run | Yrd Mat Sub Total 1329 | 91 644 594 Wait 3 | . . 3 Move 1227 | 76 611 540 Hop . | . . . Pick Up 17 | 2 10 5 Fast Attach 7 | 7 . . Attach . | . . . Detach . | . . . Swap 8 | 1 2 5 Drop 10 | . 6 4 Fire 57 | 5 15 37 Melee . | . . . Ram . | . . . Kick . | . . . Crush . | . . . Escape Stasis . | . . . Rewire . | . . . Trap . | . . . Miscellaneous . | . . . Route ------- -11/Scrapyard -10/Materials (discovered 6 exits: [*Mat x3] / [*Min x2] / [*Sub]) -10/Subcaves (discovered 1 exit: [*Rec]) History --------- Turn | Location | Event 30 | -11/Scrapyard | Discovered new exit (range 15) 143 | -11/Scrapyard | Entered Materials 302 | -10/Materials | Build established: Mutant 693 | -10/Materials | Discovered new exit (range 11) 725 | -10/Materials | Discovered new exit (range 8) 773 | -10/Materials | Discovered new exit (range 16) 847 | -10/Materials | Discovered new exit (range 7) 967 | -10/Materials | Discovered new exit (range 15) 1070 | -10/Materials | Central database locked down 1086 | -10/Materials | Discovered new exit (range 16) 1179 | -10/Materials | Entered Subcaves 1233 | -10/Subcaves | Core integrity fell below 50% 1387 | -10/Subcaves | Learned location of Zion (-7) 1387 | -10/Subcaves | Met a Zionite searching for "candidates" 1483 | -10/Subcaves | Shifting Twisted Machinery released Sub. Power Source 1490 | -10/Subcaves | Shifting Twisted Machinery released Mak. Thermal Plating 1592 | -10/Subcaves | A swath of the cavern ceiling suddenly collapsed 1876 | -10/Subcaves | Ambushed by Subdwellers from Twisted Machinery 1910 | -10/Subcaves | Core integrity fell below 20% 2159 | -10/Subcaves | Discovered new exit (range 14) 2160 | -10/Subcaves | Destroyed by Autobeam Turret with Autobeam Last Messages --------------- 01669_ Found 41 Matter. 01833_ W3-BFP(u) builds Twisted Machinery. [Achievement: Bumper Bots] 01909_ 2C-ANI(R) destroyed. 01914_ K6-4X5(R) affixes Scrap Shield Fragment to Scrap Shield. 01927_ K6-4X5(R) destroyed. 01933_ Acquired 10 matter. 01935_ Acquired 3 matter. 01936_ Subatomizers dissect the Disposable Heat Sink. 01936_ Acquired 47 matter. 01950_ Subatomizers dissect the Disposable Heat Sink. 02053_ Subatomizers dissect the Disposable Heat Sink, destroying it. 02063_ Acquired 5 matter. 02066_ Subatomizers dissect the Sub. Power Source. 02159_ EXIT=FOUND Map ----- +----------------------------------------------------+ | ?????????????????????????????????????????????????? | | ?????????????????????????????????????????????????? | | ?????????????????????????????????????????????????? | | ?????????????????????????????????????????????????? | | ?????????????????????????????????????????????????? | | ?????????????????????????????????????????????????? | | ?????????????????????????????????????????????????? | | ?????????????????????????????????????????????????? | | ?????????????????????????????????????????????????? | | ?????????????????????????????????????????????????? | | ?????????????????????????????????????????????????? | | ?????####????????????????????????????????????????? | | ?????# ##???????????? ?????????????????????????? | | ?????# ##??????????# ?????????????????????????? | | ????## #?????????? ????????????????????????? | | ???## #####??????# #????????????????????????? | | ???# #??????# #????????????????????????? | | ???# ####??## ??###????????????????????? | | ??## ## ##?# #?? ????????????????????? | | ??# ##?# # #?# ### #?????????????????????? | | ??# ##??## ##?# "" " #?????????????????????? | | ??# ##??# ####"" " "##????????????????????? | | ??# ##?# # #"" " "###??????????????????? | | ??# ## "###" "" " " " #####??????????????? | | ??##?# """"""" " ## " " " ???????????????? | | ?????# """ # "##"@ ### #????????????????? | | #????#### """ ###""##" ##????????????????????? | | #??????## "" #?# "##" #?????????????????????? | | #??????# "" ####### "#?????????????????????? | | ???????## "" #????# "#?????????????????????? | | ??###???# "" #????# "#?????????????????????? | | ### ##??#" ##????# #?????????????????????? | | " ##?##" % ##?????# #?????????????????????? | | "" ####""* ##?????? ?????????????????????? | | "" ##"" ##??????? ?????????????????????? | | "" & #???????? ?????????????????????? | | " "" ##???????? t t??????????????????????? | | " ##" ##???????? " "??????????????????????? | | "" ##### #???????""" "??????????????????????? | | "" ##?# #????????#?